[Event "Titled Tuesday Blitz February 15 Late 2022"]
[White "Namitbir Singh Walia"]
[Black "Yang, Kaiqi"]
[WhiteFideId "35071068"]
[BlackFideId "8604398"]
[WhiteElo "1479"]
[BlackElo "2373"]
[Result "0-1"]
[Round "03"]
[TimeControl "180+1"]
[Date "2022.02.16"]
[WhiteClock "0:00:39"]
[BlackClock "0:01:19"]

1. e4 {[%clk 0:03:00]}  c5 {[%clk 0:03:00]} 2. Nf3 {[%clk 0:03:00]}  Nf6 {[%clk 0:03:00]} 3. Nc3 {[%clk 0:02:59]}  d5 {[%clk 0:03:00]} 4. exd5 {[%clk 0:02:58]}  Nxd5 {[%clk 0:03:00]} 5. Bc4 {[%clk 0:02:57]}  Nxc3 {[%clk 0:02:57]} 6. bxc3 {[%clk 0:02:58]}  e6 {[%clk 0:02:55]} 7. O-O {[%clk 0:02:54]}  Be7 {[%clk 0:02:55]} 8. a4 {[%clk 0:02:52]}  Nc6 {[%clk 0:02:55]} 9. Ba3 {[%clk 0:02:50]}  O-O {[%clk 0:02:54]} 10. Qe2 {[%clk 0:02:43]}  b6 {[%clk 0:02:48]} 11. Bd3 {[%clk 0:01:55]}  Bb7 {[%clk 0:02:44]} 12. Be4 {[%clk 0:01:55]}  Qc7 {[%clk 0:02:39]} 13. Rab1 {[%clk 0:01:44]}  Rad8 {[%clk 0:02:32]} 14. Rfd1 {[%clk 0:01:40]}  h6 {[%clk 0:02:23]} 15. h3 {[%clk 0:01:31]}  Rfe8 {[%clk 0:02:21]} 16. d4 {[%clk 0:01:24]}  cxd4 {[%clk 0:02:21]} 17. Bxe7 {[%clk 0:01:25]}  Nxe7 {[%clk 0:02:07]} 18. cxd4 {[%clk 0:01:25]}  Bxe4 {[%clk 0:02:03]} 19. Qxe4 {[%clk 0:01:26]}  Nd5 {[%clk 0:02:03]} 20. Qe5 {[%clk 0:00:48]}  Qxc2 {[%clk 0:01:29]} 21. a5 {[%clk 0:00:39]}  Nc3 {[%clk 0:01:19]} 0-1


[Site "https://www.chess.com"]

[Event "Titled Tuesday Blitz February 15 Late 2022"]
[White "Nazaretyan, Tigran"]
[Black "Urbina Quiroz, Edwin"]
[WhiteFideId "24162345"]
[BlackFideId "6500650"]
[WhiteElo "2192"]
[BlackElo "2130"]
[Result "1-0"]
[Round "03"]
[TimeControl "180+1"]
[Date "2022.02.16"]
[WhiteClock "0:00:32"]
[BlackClock "0:00:01"]

1. d4 {[%clk 0:02:56]}  d5 {[%clk 0:02:57]} 2. c4 {[%clk 0:02:56]}  e6 {[%clk 0:02:57]} 3. Nf3 {[%clk 0:02:56]}  Nf6 {[%clk 0:02:57]} 4. Nc3 {[%clk 0:02:56]}  Be7 {[%clk 0:02:57]} 5. Bf4 {[%clk 0:02:56]}  O-O {[%clk 0:02:56]} 6. e3 {[%clk 0:02:56]}  Nbd7 {[%clk 0:02:52]} 7. c5 {[%clk 0:02:56]}  c6 {[%clk 0:02:51]} 8. Bd3 {[%clk 0:02:55]}  b6 {[%clk 0:02:51]} 9. b4 {[%clk 0:02:55]}  a5 {[%clk 0:02:50]} 10. a3 {[%clk 0:02:56]}  Ba6 {[%clk 0:02:48]} 11. O-O {[%clk 0:02:53]}  Bxd3 {[%clk 0:02:32]} 12. Qxd3 {[%clk 0:02:52]}  Qc8 {[%clk 0:02:32]} 13. h3 {[%clk 0:02:51]}  Qb7 {[%clk 0:02:28]} 14. Rfb1 {[%clk 0:02:47]}  axb4 {[%clk 0:02:24]} 15. axb4 {[%clk 0:02:46]}  Rxa1 {[%clk 0:02:25]} 16. Rxa1 {[%clk 0:02:46]}  Ra8 {[%clk 0:02:23]} 17. Qb1 {[%clk 0:02:42]}  Bd8 {[%clk 0:02:15]} 18. Rxa8 {[%clk 0:02:29]}  Qxa8 {[%clk 0:02:15]} 19. Qa2 {[%clk 0:02:29]}  Qb7 {[%clk 0:01:40]} 20. g4 {[%clk 0:02:19]}  h6 {[%clk 0:01:40]} 21. Kg2 {[%clk 0:02:19]}  Bc7 {[%clk 0:01:38]} 22. Bxc7 {[%clk 0:02:11]}  Qxc7 {[%clk 0:01:39]} 23. Qa8+ {[%clk 0:02:11]}  Kh7 {[%clk 0:01:33]} 24. b5 {[%clk 0:02:11]}  bxc5 {[%clk 0:00:44]} 25. Qxc6 {[%clk 0:02:10]}  Ne8 {[%clk 0:00:40]} 26. dxc5 {[%clk 0:01:43]}  Qxc6 {[%clk 0:00:39]} 27. bxc6 {[%clk 0:01:43]}  Nxc5 {[%clk 0:00:40]} 28. Nb5 {[%clk 0:01:43]}  Na6 {[%clk 0:00:37]} 29. Ne5 {[%clk 0:01:41]}  Kg8 {[%clk 0:00:30]} 30. f4 {[%clk 0:01:34]}  Kf8 {[%clk 0:00:23]} 31. h4 {[%clk 0:01:28]}  Nac7 {[%clk 0:00:22]} 32. Nd4 {[%clk 0:01:23]}  Ke7 {[%clk 0:00:22]} 33. g5 {[%clk 0:01:22]}  h5 {[%clk 0:00:12]} 34. Kf3 {[%clk 0:01:12]}  f6 {[%clk 0:00:08]} 35. Nd3 {[%clk 0:01:03]}  Kd6 {[%clk 0:00:08]} 36. g6 {[%clk 0:00:52]}  Ke7 {[%clk 0:00:04]} 37. Nb4 {[%clk 0:00:49]}  Nd6 {[%clk 0:00:04]} 38. Ne2 {[%clk 0:00:42]}  e5 {[%clk 0:00:04]} 39. Ng3 {[%clk 0:00:42]}  exf4 {[%clk 0:00:02]} 40. exf4 {[%clk 0:00:41]}  Ke6 {[%clk 0:00:03]} 41. Nxh5 {[%clk 0:00:42]}  Nf5 {[%clk 0:00:03]} 42. Kg4 {[%clk 0:00:37]}  Nh6+ {[%clk 0:00:02]} 43. Kh3 {[%clk 0:00:36]}  Nf5 {[%clk 0:00:03]} 44. Nd3 {[%clk 0:00:34]}  Kd6 {[%clk 0:00:02]} 45. Kg4 {[%clk 0:00:34]}  Nh6+ {[%clk 0:00:02]} 46. Kg3 {[%clk 0:00:33]}  Nf5+ {[%clk 0:00:03]} 47. Kg4 {[%clk 0:00:32]}  Nh6+ {[%clk 0:00:03]} 48. Kh3 {[%clk 0:00:33]}  Nf5 {[%clk 0:00:04]} 49. Ng3 {[%clk 0:00:32]}  Nxg3 {[%clk 0:00:02]} 50. Kxg3 {[%clk 0:00:32]}  Kxc6 {[%clk 0:00:03]} 51. h5 {[%clk 0:00:33]}  Ne6 {[%clk 0:00:02]} 52. f5 {[%clk 0:00:33]}  Ng5 {[%clk 0:00:01]} 53. h6 {[%clk 0:00:32]}  gxh6 {[%clk 0:00:01]} 54. g7 {[%clk 0:00:32]}  Ne4+ {[%clk 0:00:01]} 55. Kf4 {[%clk 0:00:32]} 1-0


[Site "https://www.chess.com"]

[Event "Titled Tuesday Blitz February 15 Late 2022"]
[White "Osmonbekov, Talaibek"]
[Black "Stoleriu, George"]
[WhiteFideId "2017253"]
[BlackFideId "1227505"]
[WhiteElo "2135"]
[BlackElo "2203"]
[Result "0-1"]
[Round "03"]
[TimeControl "180+1"]
[Date "2022.02.16"]
[WhiteClock "0:00:33"]
[BlackClock "0:01:36"]

1. d4 {[%clk 0:03:00]}  e6 {[%clk 0:02:49]} 2. Nc3 {[%clk 0:02:55]}  Nf6 {[%clk 0:02:46]} 3. e4 {[%clk 0:02:55]}  d5 {[%clk 0:02:46]} 4. e5 {[%clk 0:02:55]}  Nfd7 {[%clk 0:02:47]} 5. Nce2 {[%clk 0:02:56]}  c5 {[%clk 0:02:47]} 6. c3 {[%clk 0:02:56]}  Nc6 {[%clk 0:02:48]} 7. f4 {[%clk 0:02:57]}  cxd4 {[%clk 0:02:47]} 8. cxd4 {[%clk 0:02:56]}  Bb4+ {[%clk 0:02:48]} 9. Bd2 {[%clk 0:02:56]}  Qb6 {[%clk 0:02:49]} 10. Nf3 {[%clk 0:02:56]}  f6 {[%clk 0:02:48]} 11. a3 {[%clk 0:02:47]}  Bxd2+ {[%clk 0:02:47]} 12. Qxd2 {[%clk 0:02:48]}  Na5 {[%clk 0:02:48]} 13. Nc3 {[%clk 0:02:45]}  Nb3 {[%clk 0:02:48]} 14. Qd1 {[%clk 0:02:38]}  Nxa1 {[%clk 0:02:46]} 15. Qxa1 {[%clk 0:02:39]}  O-O {[%clk 0:02:46]} 16. Bd3 {[%clk 0:02:34]}  fxe5 {[%clk 0:02:42]} 17. fxe5 {[%clk 0:02:33]}  Rxf3 {[%clk 0:02:43]} 18. gxf3 {[%clk 0:02:29]}  Qxd4 {[%clk 0:02:43]} 19. Qd1 {[%clk 0:02:25]}  Qe3+ {[%clk 0:02:42]} 20. Qe2 {[%clk 0:02:21]}  Qxe2+ {[%clk 0:02:42]} 21. Bxe2 {[%clk 0:02:14]}  Nxe5 {[%clk 0:02:43]} 22. f4 {[%clk 0:02:08]}  Nc6 {[%clk 0:02:38]} 23. Kd2 {[%clk 0:01:51]}  Bd7 {[%clk 0:02:38]} 24. Bg4 {[%clk 0:01:43]}  Ne7 {[%clk 0:02:28]} 25. Re1 {[%clk 0:01:40]}  Kf7 {[%clk 0:02:28]} 26. Ne2 {[%clk 0:01:29]}  Re8 {[%clk 0:01:57]} 27. Nd4 {[%clk 0:01:19]}  Nc6 {[%clk 0:01:56]} 28. Nb5 {[%clk 0:01:12]}  Kf6 {[%clk 0:01:56]} 29. Nd6 {[%clk 0:01:03]}  Rb8 {[%clk 0:01:53]} 30. Nb5 {[%clk 0:01:03]}  a6 {[%clk 0:01:48]} 31. Nc3 {[%clk 0:01:03]}  Ne7 {[%clk 0:01:43]} 32. Kd3 {[%clk 0:00:57]}  Re8 {[%clk 0:01:39]} 33. Re2 {[%clk 0:00:45]}  Ng6 {[%clk 0:01:35]} 34. Nxd5+ {[%clk 0:00:34]}  exd5 {[%clk 0:01:36]} 35. Bxd7 {[%clk 0:00:33]}  Nxf4+ {[%clk 0:01:36]} 0-1


[Site "https://www.chess.com"]

[Event "Titled Tuesday Blitz February 15 Late 2022"]
[White "Papasimakopoulos, Alexandros"]
[Black "Moroni, Luca Jr"]
[WhiteFideId "4244125"]
[BlackFideId "865834"]
[WhiteElo "2340"]
[BlackElo "2573"]
[Result "1-0"]
[Round "03"]
[TimeControl "180+1"]
[Date "2022.02.15"]
[WhiteClock "0:00:58"]
[BlackClock "0:00:16"]

1. d4 {[%clk 0:03:00]}  d6 {[%clk 0:02:59]} 2. Nf3 {[%clk 0:03:00]}  g6 {[%clk 0:03:00]} 3. e4 {[%clk 0:03:00]}  Bg7 {[%clk 0:03:00]} 4. c4 {[%clk 0:03:00]}  Bg4 {[%clk 0:02:56]} 5. Be2 {[%clk 0:03:00]}  Nc6 {[%clk 0:02:55]} 6. d5 {[%clk 0:03:00]}  Bxf3 {[%clk 0:02:55]} 7. Bxf3 {[%clk 0:03:00]}  Nd4 {[%clk 0:02:53]} 8. Nc3 {[%clk 0:02:59]}  c5 {[%clk 0:02:50]} 9. g3 {[%clk 0:02:52]}  h5 {[%clk 0:02:46]} 10. h4 {[%clk 0:02:52]}  Nf6 {[%clk 0:02:42]} 11. O-O {[%clk 0:02:50]}  Qd7 {[%clk 0:02:39]} 12. Bg2 {[%clk 0:02:49]}  Ng4 {[%clk 0:02:38]} 13. Ne2 {[%clk 0:02:40]}  O-O {[%clk 0:02:34]} 14. Nxd4 {[%clk 0:02:29]}  Bxd4 {[%clk 0:02:33]} 15. Qe2 {[%clk 0:02:17]}  a6 {[%clk 0:02:28]} 16. Bh3 {[%clk 0:02:15]}  f5 {[%clk 0:02:09]} 17. exf5 {[%clk 0:02:04]}  Qxf5 {[%clk 0:02:06]} 18. Bf4 {[%clk 0:01:59]}  Rae8 {[%clk 0:01:59]} 19. Rae1 {[%clk 0:01:52]}  Rf6 {[%clk 0:01:46]} 20. Kg2 {[%clk 0:01:47]}  e5 {[%clk 0:01:32]} 21. f3 {[%clk 0:01:38]}  exf4 {[%clk 0:00:34]} 22. Qxe8+ {[%clk 0:01:36]}  Rf8 {[%clk 0:00:34]} 23. fxg4 {[%clk 0:01:37]}  f3+ {[%clk 0:00:24]} 24. Kh1 {[%clk 0:01:34]}  hxg4 {[%clk 0:00:24]} 25. Qe6+ {[%clk 0:01:27]}  Qxe6 {[%clk 0:00:24]} 26. Rxe6 {[%clk 0:01:28]}  gxh3 {[%clk 0:00:24]} 27. Rxg6+ {[%clk 0:01:25]}  Kh7 {[%clk 0:00:24]} 28. Rxd6 {[%clk 0:01:25]}  f2 {[%clk 0:00:25]} 29. Kh2 {[%clk 0:01:22]}  Rf3 {[%clk 0:00:25]} 30. Re6 {[%clk 0:01:20]}  Rd3 {[%clk 0:00:20]} 31. Re2 {[%clk 0:01:13]}  Kg6 {[%clk 0:00:17]} 32. Kxh3 {[%clk 0:01:13]}  Kf5 {[%clk 0:00:16]} 33. Rexf2+ {[%clk 0:01:11]}  Bxf2 {[%clk 0:00:17]} 34. Rxf2+ {[%clk 0:01:12]}  Ke5 {[%clk 0:00:18]} 35. h5 {[%clk 0:01:10]}  b5 {[%clk 0:00:18]} 36. b3 {[%clk 0:01:05]}  bxc4 {[%clk 0:00:16]} 37. bxc4 {[%clk 0:01:06]}  Rd1 {[%clk 0:00:15]} 38. Kg4 {[%clk 0:01:05]}  Rh1 {[%clk 0:00:14]} 39. Kg5 {[%clk 0:01:05]}  Kd4 {[%clk 0:00:14]} 40. Rf4+ {[%clk 0:01:04]}  Ke5 {[%clk 0:00:14]} 41. g4 {[%clk 0:01:01]}  Rh2 {[%clk 0:00:14]} 42. a4 {[%clk 0:01:00]}  a5 {[%clk 0:00:15]} 43. Rf8 {[%clk 0:00:57]}  Kd4 {[%clk 0:00:15]} 44. d6 {[%clk 0:00:57]}  Kxc4 {[%clk 0:00:15]} 45. d7 {[%clk 0:00:58]}  Rd2 {[%clk 0:00:16]} 46. d8=Q {[%clk 0:00:58]} 1-0


[Site "https://www.chess.com"]

[Event "Titled Tuesday Blitz February 15 Late 2022"]
[White "Peatman, Carter"]
[Black "Jaferian, Koosha"]
[WhiteFideId "2096480"]
[BlackFideId "12507440"]
[WhiteElo "2393"]
[BlackElo "2027"]
[Result "0-1"]
[Round "03"]
[TimeControl "180+1"]
[Date "2022.02.16"]
[WhiteClock "0:00:09"]
[BlackClock "0:00:10"]

1. d4 {[%clk 0:02:59]}  Nf6 {[%clk 0:02:59]} 2. Bf4 {[%clk 0:02:59]}  g6 {[%clk 0:02:59]} 3. e3 {[%clk 0:02:59]}  Bg7 {[%clk 0:02:59]} 4. Nf3 {[%clk 0:03:00]}  d6 {[%clk 0:02:58]} 5. h3 {[%clk 0:03:01]}  O-O {[%clk 0:02:58]} 6. Be2 {[%clk 0:03:01]}  Nc6 {[%clk 0:02:53]} 7. O-O {[%clk 0:03:02]}  e5 {[%clk 0:02:53]} 8. Bh2 {[%clk 0:02:32]}  Qe7 {[%clk 0:02:45]} 9. c3 {[%clk 0:02:29]}  Ne4 {[%clk 0:02:35]} 10. Nbd2 {[%clk 0:02:28]}  Nxd2 {[%clk 0:02:33]} 11. Nxd2 {[%clk 0:02:28]}  f5 {[%clk 0:02:31]} 12. Re1 {[%clk 0:02:27]}  Be6 {[%clk 0:02:26]} 13. a4 {[%clk 0:02:17]}  Bf7 {[%clk 0:02:24]} 14. a5 {[%clk 0:02:16]}  a6 {[%clk 0:02:25]} 15. b4 {[%clk 0:02:07]}  Rad8 {[%clk 0:02:21]} 16. Qa4 {[%clk 0:02:06]}  Na7 {[%clk 0:01:56]} 17. b5 {[%clk 0:01:57]}  axb5 {[%clk 0:01:54]} 18. Bxb5 {[%clk 0:01:57]}  Nxb5 {[%clk 0:01:45]} 19. Qxb5 {[%clk 0:01:58]}  Rb8 {[%clk 0:01:44]} 20. Rab1 {[%clk 0:01:49]}  Qe8 {[%clk 0:01:31]} 21. Nf3 {[%clk 0:01:41]}  Qxb5 {[%clk 0:01:19]} 22. Rxb5 {[%clk 0:01:42]}  e4 {[%clk 0:01:20]} 23. Nd2 {[%clk 0:01:40]}  Be8 {[%clk 0:01:15]} 24. Rb4 {[%clk 0:01:33]}  Bc6 {[%clk 0:01:13]} 25. Reb1 {[%clk 0:01:31]}  Ra8 {[%clk 0:01:12]} 26. Ra1 {[%clk 0:01:08]}  Ra7 {[%clk 0:01:08]} 27. Rb3 {[%clk 0:01:02]}  Rfa8 {[%clk 0:01:07]} 28. Rba3 {[%clk 0:01:02]}  b6 {[%clk 0:01:06]} 29. a6 {[%clk 0:00:44]}  Bd7 {[%clk 0:00:57]} 30. g4 {[%clk 0:00:30]}  Bc8 {[%clk 0:00:56]} 31. gxf5 {[%clk 0:00:29]}  gxf5 {[%clk 0:00:57]} 32. Bf4 {[%clk 0:00:28]}  Rxa6 {[%clk 0:00:58]} 33. Rxa6 {[%clk 0:00:27]}  Rxa6 {[%clk 0:00:59]} 34. Rxa6 {[%clk 0:00:27]}  Bxa6 {[%clk 0:01:00]} 35. Kg2 {[%clk 0:00:25]}  Kf7 {[%clk 0:00:59]} 36. Kg3 {[%clk 0:00:25]}  Ke6 {[%clk 0:01:00]} 37. c4 {[%clk 0:00:23]}  c6 {[%clk 0:00:53]} 38. Bg5 {[%clk 0:00:22]}  b5 {[%clk 0:00:49]} 39. cxb5 {[%clk 0:00:21]}  Bxb5 {[%clk 0:00:50]} 40. Bd8 {[%clk 0:00:20]}  c5 {[%clk 0:00:41]} 41. dxc5 {[%clk 0:00:18]}  dxc5 {[%clk 0:00:42]} 42. f3 {[%clk 0:00:16]}  Kd5 {[%clk 0:00:33]} 43. fxe4+ {[%clk 0:00:16]}  fxe4 {[%clk 0:00:34]} 44. Ba5 {[%clk 0:00:13]}  c4 {[%clk 0:00:34]} 45. Nb1 {[%clk 0:00:14]}  Be5+ {[%clk 0:00:28]} 46. Kg2 {[%clk 0:00:11]}  Bc6 {[%clk 0:00:11]} 47. Nc3+ {[%clk 0:00:10]}  Kc5 {[%clk 0:00:11]} 48. Kf2 {[%clk 0:00:09]}  Bf6 {[%clk 0:00:06]} 49. Kg2 {[%clk 0:00:09]}  h6 {[%clk 0:00:04]} 50. Ne2 {[%clk 0:00:07]}  Kb5 {[%clk 0:00:04]} 51. Bc3 {[%clk 0:00:04]}  Bxc3 {[%clk 0:00:03]} 52. Nxc3+ {[%clk 0:00:04]}  Kb4 {[%clk 0:00:04]} 53. Ne2 {[%clk 0:00:03]}  c3 {[%clk 0:00:05]} 54. Nd4 {[%clk 0:00:03]}  Ba4 {[%clk 0:00:05]} 55. Kf2 {[%clk 0:00:03]}  c2 {[%clk 0:00:06]} 56. Ne2 {[%clk 0:00:03]}  Kb3 {[%clk 0:00:06]} 57. Kg3 {[%clk 0:00:04]}  Kb2 {[%clk 0:00:05]} 58. Kf4 {[%clk 0:00:04]}  Bc6 {[%clk 0:00:06]} 59. Ke5 {[%clk 0:00:04]}  c1=Q {[%clk 0:00:06]} 60. Nxc1 {[%clk 0:00:04]}  Kxc1 {[%clk 0:00:07]} 61. Kf4 {[%clk 0:00:05]}  Kd2 {[%clk 0:00:08]} 62. Kf5 {[%clk 0:00:05]}  Kxe3 {[%clk 0:00:08]} 63. Kg6 {[%clk 0:00:06]}  Kf3 {[%clk 0:00:08]} 64. Kxh6 {[%clk 0:00:07]}  e3 {[%clk 0:00:09]} 65. Kg6 {[%clk 0:00:08]}  e2 {[%clk 0:00:10]} 66. h4 {[%clk 0:00:08]}  e1=Q {[%clk 0:00:11]} 67. h5 {[%clk 0:00:09]}  Be4+ {[%clk 0:00:10]} 68. Kg7 {[%clk 0:00:09]}  Qc3+ {[%clk 0:00:11]} 69. Kh6 {[%clk 0:00:09]}  Qf6# {[%clk 0:00:10]} 0-1


[Site "https://www.chess.com"]

[Event "Titled Tuesday Blitz February 15 Late 2022"]
[White "Pinheiro, Iung Alicio de O."]
[Black "Rangel, Daniel"]
[WhiteFideId "2104350"]
[BlackFideId "2124475"]
[WhiteElo "2626"]
[BlackElo "2187"]
[Result "1-0"]
[Round "03"]
[TimeControl "180+1"]
[Date "2022.02.16"]
[WhiteClock "0:00:41"]
[BlackClock "0:00:02"]

1. e4 {[%clk 0:02:59]}  c6 {[%clk 0:02:58]} 2. d4 {[%clk 0:02:58]}  d5 {[%clk 0:02:59]} 3. e5 {[%clk 0:02:58]}  c5 {[%clk 0:02:59]} 4. dxc5 {[%clk 0:02:58]}  e6 {[%clk 0:02:59]} 5. a3 {[%clk 0:02:58]}  Bxc5 {[%clk 0:02:58]} 6. Nf3 {[%clk 0:02:58]}  Ne7 {[%clk 0:02:55]} 7. Bd3 {[%clk 0:02:57]}  Ng6 {[%clk 0:02:54]} 8. O-O {[%clk 0:02:54]}  O-O {[%clk 0:02:53]} 9. b4 {[%clk 0:02:54]}  Bb6 {[%clk 0:02:52]} 10. Bb2 {[%clk 0:02:54]}  a5 {[%clk 0:02:44]} 11. b5 {[%clk 0:02:52]}  a4 {[%clk 0:02:40]} 12. Nbd2 {[%clk 0:02:52]}  Bd7 {[%clk 0:02:28]} 13. Re1 {[%clk 0:02:47]}  Qe8 {[%clk 0:02:24]} 14. c4 {[%clk 0:02:42]}  Ba5 {[%clk 0:02:00]} 15. cxd5 {[%clk 0:02:02]}  exd5 {[%clk 0:01:52]} 16. Nd4 {[%clk 0:01:50]}  Nxe5 {[%clk 0:01:20]} 17. Bxh7+ {[%clk 0:01:21]}  Kxh7 {[%clk 0:01:14]} 18. Qh5+ {[%clk 0:01:21]}  Kg8 {[%clk 0:01:14]} 19. Rxe5 {[%clk 0:01:21]}  Qd8 {[%clk 0:00:40]} 20. Nf5 {[%clk 0:01:03]}  Bxf5 {[%clk 0:00:26]} 21. Rxf5 {[%clk 0:01:04]}  Bxd2 {[%clk 0:00:25]} 22. Rxd5 {[%clk 0:00:58]}  Qe7 {[%clk 0:00:12]} 23. Rxd2 {[%clk 0:00:48]}  Nd7 {[%clk 0:00:11]} 24. Re2 {[%clk 0:00:45]}  Qc5 {[%clk 0:00:09]} 25. Qg4 {[%clk 0:00:42]}  f6 {[%clk 0:00:02]} 26. Qxd7 {[%clk 0:00:41]} 1-0


[Site "https://www.chess.com"]

[Event "Titled Tuesday Blitz February 15 Late 2022"]
[White "Prohorov, Olexandr"]
[Black "Kopczynski, Michal"]
[WhiteFideId "14105578"]
[BlackFideId "1124200"]
[WhiteElo "1993"]
[BlackElo "2235"]
[Result "0-1"]
[Round "03"]
[TimeControl "180+1"]
[Date "2022.02.16"]
[WhiteClock "0:00:14"]
[BlackClock "0:00:07"]

1. e4 {[%clk 0:03:00]}  c5 {[%clk 0:02:59]} 2. c3 {[%clk 0:02:58]}  d5 {[%clk 0:02:59]} 3. exd5 {[%clk 0:02:58]}  Qxd5 {[%clk 0:03:00]} 4. d4 {[%clk 0:02:58]}  cxd4 {[%clk 0:03:01]} 5. cxd4 {[%clk 0:02:57]}  Nc6 {[%clk 0:03:01]} 6. Nf3 {[%clk 0:02:57]}  Bg4 {[%clk 0:03:01]} 7. Nc3 {[%clk 0:02:57]}  Bxf3 {[%clk 0:03:00]} 8. gxf3 {[%clk 0:02:44]}  Qa5 {[%clk 0:02:37]} 9. d5 {[%clk 0:02:43]}  Nb8 {[%clk 0:02:31]} 10. Bb5+ {[%clk 0:02:42]}  Nd7 {[%clk 0:02:31]} 11. Bg5 {[%clk 0:02:37]}  O-O-O {[%clk 0:02:22]} 12. Rc1 {[%clk 0:02:31]}  Kb8 {[%clk 0:02:22]} 13. Bf4+ {[%clk 0:02:29]}  Ka8 {[%clk 0:02:21]} 14. O-O {[%clk 0:02:30]}  Ngf6 {[%clk 0:02:18]} 15. Qd4 {[%clk 0:02:19]}  e5 {[%clk 0:02:13]} 16. dxe6 {[%clk 0:02:17]}  fxe6 {[%clk 0:02:05]} 17. Rfd1 {[%clk 0:02:14]}  Bc5 {[%clk 0:01:52]} 18. Qc4 {[%clk 0:01:57]}  e5 {[%clk 0:01:39]} 19. Bd2 {[%clk 0:01:51]}  Qb6 {[%clk 0:01:31]} 20. Be1 {[%clk 0:01:51]}  Bd4 {[%clk 0:01:14]} 21. Na4 {[%clk 0:01:45]}  Qd6 {[%clk 0:01:09]} 22. Bb4 {[%clk 0:01:38]}  Qb8 {[%clk 0:00:49]} 23. Ba5 {[%clk 0:01:34]}  Nb6 {[%clk 0:00:34]} 24. Nxb6+ {[%clk 0:01:05]}  axb6 {[%clk 0:00:33]} 25. Bc3 {[%clk 0:00:49]}  Qd6 {[%clk 0:00:28]} 26. Bxd4 {[%clk 0:00:40]}  exd4 {[%clk 0:00:29]} 27. Rd3 {[%clk 0:00:40]}  Nh5 {[%clk 0:00:19]} 28. Rcd1 {[%clk 0:00:33]}  Nf4 {[%clk 0:00:13]} 29. Rxd4 {[%clk 0:00:25]}  Qg6+ {[%clk 0:00:12]} 30. Kf1 {[%clk 0:00:25]}  Qg2+ {[%clk 0:00:10]} 31. Ke1 {[%clk 0:00:25]}  Qg1+ {[%clk 0:00:07]} 32. Qf1 {[%clk 0:00:26]}  Qxf1+ {[%clk 0:00:04]} 33. Kxf1 {[%clk 0:00:26]}  Rc8 {[%clk 0:00:03]} 34. Rd7 {[%clk 0:00:26]}  Rhf8 {[%clk 0:00:02]} 35. R1d4 {[%clk 0:00:26]}  Ne6 {[%clk 0:00:02]} 36. Ra4+ {[%clk 0:00:27]}  Kb8 {[%clk 0:00:02]} 37. Re7 {[%clk 0:00:28]}  Nc5 {[%clk 0:00:03]} 38. Rd4 {[%clk 0:00:26]}  Rxf3 {[%clk 0:00:02]} 39. b4 {[%clk 0:00:26]}  Na6 {[%clk 0:00:01]} 40. Rdd7 {[%clk 0:00:27]}  Nc7 {[%clk 0:00:02]} 41. Be2 {[%clk 0:00:26]}  Rf6 {[%clk 0:00:02]} 42. Re3 {[%clk 0:00:26]}  Rc6 {[%clk 0:00:02]} 43. a4 {[%clk 0:00:26]}  Rc1+ {[%clk 0:00:02]} 44. Kg2 {[%clk 0:00:25]}  Rb1 {[%clk 0:00:03]} 45. b5 {[%clk 0:00:25]}  Rb2 {[%clk 0:00:03]} 46. Bf3 {[%clk 0:00:26]}  Ra2 {[%clk 0:00:04]} 47. Rc3 {[%clk 0:00:26]}  Rxa4 {[%clk 0:00:04]} 48. Kg3 {[%clk 0:00:26]}  Rb4 {[%clk 0:00:04]} 49. Rxg7 {[%clk 0:00:24]}  Rxb5 {[%clk 0:00:04]} 50. Rxh7 {[%clk 0:00:24]}  Rg5+ {[%clk 0:00:04]} 51. Kh3 {[%clk 0:00:25]}  Rc5 {[%clk 0:00:05]} 52. Kg2 {[%clk 0:00:24]}  Rxc3 {[%clk 0:00:05]} 53. h4 {[%clk 0:00:25]}  Rg8+ {[%clk 0:00:05]} 54. Kf1 {[%clk 0:00:24]}  Rxf3 {[%clk 0:00:05]} 55. h5 {[%clk 0:00:12]}  Rgf8 {[%clk 0:00:06]} 56. h6 {[%clk 0:00:13]}  Rxf2+ {[%clk 0:00:06]} 57. Ke1 {[%clk 0:00:13]}  R2f7 {[%clk 0:00:06]} 58. Kd1 {[%clk 0:00:14]}  Rxh7 {[%clk 0:00:07]} 0-1


[Site "https://www.chess.com"]

[Event "Titled Tuesday Blitz February 15 Late 2022"]
[White "Ramirez, Alejandro"]
[Black "Chigaev, Maksim"]
[WhiteFideId "6500617"]
[BlackFideId "4108116"]
[WhiteElo "2694"]
[BlackElo "2502"]
[Result "0-1"]
[Round "03"]
[TimeControl "180+1"]
[Date "2022.02.15"]
[WhiteClock "0:00:14"]
[BlackClock "0:00:29"]

1. c4 {[%clk 0:03:00]}  g6 {[%clk 0:02:59]} 2. g3 {[%clk 0:03:01]}  Bg7 {[%clk 0:02:59]} 3. Bg2 {[%clk 0:03:01]}  e5 {[%clk 0:02:59]} 4. Nc3 {[%clk 0:03:01]}  Nc6 {[%clk 0:03:00]} 5. e3 {[%clk 0:03:02]}  h6 {[%clk 0:02:59]} 6. Nge2 {[%clk 0:03:02]}  h5 {[%clk 0:02:59]} 7. h3 {[%clk 0:02:57]}  d6 {[%clk 0:02:57]} 8. d4 {[%clk 0:02:57]}  h4 {[%clk 0:02:42]} 9. g4 {[%clk 0:02:56]}  f5 {[%clk 0:02:43]} 10. gxf5 {[%clk 0:02:43]}  Bxf5 {[%clk 0:02:44]} 11. d5 {[%clk 0:02:32]}  Nce7 {[%clk 0:02:36]} 12. e4 {[%clk 0:02:32]}  Bd7 {[%clk 0:02:36]} 13. Be3 {[%clk 0:02:27]}  Nh6 {[%clk 0:02:23]} 14. Qd2 {[%clk 0:02:26]}  Nf7 {[%clk 0:02:23]} 15. O-O-O {[%clk 0:02:23]}  g5 {[%clk 0:02:24]} 16. Bf3 {[%clk 0:02:08]}  Ng6 {[%clk 0:02:23]} 17. c5 {[%clk 0:02:00]}  Nf4 {[%clk 0:02:21]} 18. Bg4 {[%clk 0:02:00]}  Bxg4 {[%clk 0:02:13]} 19. hxg4 {[%clk 0:02:01]}  Qd7 {[%clk 0:02:07]} 20. f3 {[%clk 0:02:01]}  dxc5 {[%clk 0:02:07]} 21. Bxc5 {[%clk 0:02:00]}  a6 {[%clk 0:01:55]} 22. Kb1 {[%clk 0:01:59]}  Bf6 {[%clk 0:01:23]} 23. Rc1 {[%clk 0:01:42]}  Nd6 {[%clk 0:01:13]} 24. Nd1 {[%clk 0:01:35]}  Qb5 {[%clk 0:01:01]} 25. Bxd6 {[%clk 0:00:51]}  cxd6 {[%clk 0:00:56]} 26. Nec3 {[%clk 0:00:51]}  Qd3+ {[%clk 0:00:49]} 27. Rc2 {[%clk 0:00:48]}  Qxd2 {[%clk 0:00:44]} 28. Rxd2 {[%clk 0:00:49]}  Rc8 {[%clk 0:00:44]} 29. Ne3 {[%clk 0:00:47]}  b5 {[%clk 0:00:42]} 30. Nf5 {[%clk 0:00:46]}  Kd7 {[%clk 0:00:42]} 31. a3 {[%clk 0:00:46]}  Bd8 {[%clk 0:00:41]} 32. Rc2 {[%clk 0:00:45]}  Ba5 {[%clk 0:00:40]} 33. b4 {[%clk 0:00:26]}  Bb6 {[%clk 0:00:40]} 34. Kb2 {[%clk 0:00:18]}  Rc4 {[%clk 0:00:38]} 35. Kb3 {[%clk 0:00:14]}  Rhc8 {[%clk 0:00:38]} 36. Rhc1 {[%clk 0:00:14]}  h3 {[%clk 0:00:30]} 37. Rh1 {[%clk 0:00:14]}  Bd4 {[%clk 0:00:28]} 38. Rhc1 {[%clk 0:00:12]}  Rxc3+ {[%clk 0:00:26]} 39. Rxc3 {[%clk 0:00:12]}  Rxc3+ {[%clk 0:00:27]} 40. Rxc3 {[%clk 0:00:12]}  Bxc3 {[%clk 0:00:28]} 41. Kxc3 {[%clk 0:00:13]}  h2 {[%clk 0:00:29]} 42. Ng3 {[%clk 0:00:14]}  Ne2+ {[%clk 0:00:29]} 0-1


[Site "https://www.chess.com"]